[Event "Late-Titled-Tuesday-Blitz-March-12-2024"]
[Site "Chess.com"]
[Date "2024.03.12"]
[Round "4"]
[White "Noki102"]
[Black "emeli_chess"]
[Result "1-0"]
[WhiteElo "2556"]
[BlackElo "2382"]
[TimeControl "180+1"]
[EndTime "14:35:43 PDT"]
[Termination "Noki102 won by resignation"]

1. d4 {[%clk 0:03:00.3]} 1... Nf6 {[%clk 0:02:59.6]} 2. Nc3 {[%clk 0:03:00.4]}
2... d5 {[%clk 0:02:59.2]} 3. Bf4 {[%clk 0:03:00.6]} 3... c5 {[%clk 0:02:57.9]}
4. e4 {[%clk 0:03:00.9]} 4... cxd4 {[%clk 0:02:55.9]} 5. Qxd4 {[%clk 0:03:01.8]}
5... Nc6 {[%clk 0:02:55.6]} 6. Bb5 {[%clk 0:03:02.1]} 6... Bd7 {[%clk
0:02:55.9]} 7. Bxc6 {[%clk 0:03:00.7]} 7... Bxc6 {[%clk 0:02:56.4]} 8. e5 {[%clk
0:03:01.4]} 8... Ne4 {[%clk 0:02:56.4]} 9. Nge2 {[%clk 0:02:48.1]} 9... e6
{[%clk 0:02:49.4]} 10. Nxe4 {[%clk 0:02:45.2]} 10... dxe4 {[%clk 0:02:49.1]} 11.
O-O-O {[%clk 0:02:45.4]} 11... Qxd4 {[%clk 0:02:42.3]} 12. Nxd4 {[%clk
0:02:45.3]} 12... Bc5 {[%clk 0:02:37.9]} 13. Nxc6 {[%clk 0:02:43.1]} 13... bxc6
{[%clk 0:02:37.7]} 14. Be3 {[%clk 0:02:42.8]} 14... Bxe3+ {[%clk 0:02:27.6]} 15.
fxe3 {[%clk 0:02:43.7]} 15... f5 {[%clk 0:02:27.1]} 16. exf6 {[%clk 0:02:42.2]}
16... gxf6 {[%clk 0:02:27]} 17. Rd6 {[%clk 0:02:42.7]} 17... Ke7 {[%clk
0:02:26]} 18. Rxc6 {[%clk 0:02:42.8]} 18... Rhc8 {[%clk 0:02:20.3]} 19. Ra6
{[%clk 0:02:42.5]} 19... Rc7 {[%clk 0:02:16.1]} 20. Rf1 {[%clk 0:02:42.5]} 20...
Rg8 {[%clk 0:01:59.5]} 21. g3 {[%clk 0:02:40.5]} 21... Rg5 {[%clk 0:01:44]} 22.
Rd1 {[%clk 0:02:32]} 22... Rh5 {[%clk 0:01:40.1]} 23. Rdd6 {[%clk 0:02:29.4]}
23... Rxh2 {[%clk 0:01:35.1]} 24. Rxe6+ {[%clk 0:02:29.1]} 24... Kf7 {[%clk
0:01:26.3]} 25. Rxf6+ {[%clk 0:02:28.9]} 25... Kg7 {[%clk 0:01:26.7]} 26. Rfc6
{[%clk 0:02:21.8]} 26... Rf7 {[%clk 0:01:19.1]} 27. b3 {[%clk 0:02:17.5]} 27...
Rg2 {[%clk 0:01:18.2]} 28. Ra4 {[%clk 0:02:15.8]} 28... Rxg3 {[%clk 0:01:17]}
29. Rxe4 {[%clk 0:02:16.1]} 29... h5 {[%clk 0:01:16.8]} 30. Re5 {[%clk
0:02:03.1]} 30... h4 {[%clk 0:01:09.1]} 31. Rh5 {[%clk 0:02:00.5]} 31... h3
{[%clk 0:01:07.7]} 32. Rch6 {[%clk 0:01:57.7]} 32... Rff3 {[%clk 0:01:07.2]} 33.
e4 {[%clk 0:01:50.9]} 33... Rc3 {[%clk 0:01:06.8]} 34. Kb2 {[%clk 0:01:50.1]}
34... Rce3 {[%clk 0:01:03.4]} 35. e5 {[%clk 0:01:49.2]} 35... Rg2 {[%clk
0:00:58.7]} 36. Rxh3 {[%clk 0:01:48.3]} 36... Rxe5 {[%clk 0:00:58.8]} 37. Rh7+
{[%clk 0:01:48.1]} 37... Kg6 {[%clk 0:00:58.7]} 38. Rxa7 {[%clk 0:01:48.2]}
38... Rc5 {[%clk 0:00:58.9]} 39. Rc3 {[%clk 0:01:48.3]} 39... Rd5 {[%clk
0:00:54.8]} 40. Ra6+ {[%clk 0:01:47.4]} 40... Kf5 {[%clk 0:00:53.2]} 41. Rac6
{[%clk 0:01:47.7]} 41... Ke5 {[%clk 0:00:52.5]} 42. R6c5 {[%clk 0:01:47.8]} 1-0

[Event "Late-Titled-Tuesday-Blitz-March-12-2024"]
[Site "Chess.com"]
[Date "2024.03.12"]
[Round "4"]
[White "AsaHoffmann"]
[Black "subham777"]
[Result "0-1"]
[WhiteElo "2398"]
[BlackElo "2570"]
[TimeControl "180+1"]
[EndTime "14:35:44 PDT"]
[Termination "subham777 won by checkmate"]

1. d4 {[%clk 0:02:59.8]} 1... d5 {[%clk 0:02:59.7]} 2. Bg5 {[%clk 0:02:55.7]}
2... Nf6 {[%clk 0:02:56.2]} 3. Nd2 {[%clk 0:02:55.2]} 3... e6 {[%clk 0:02:54.8]}
4. e3 {[%clk 0:02:54.8]} 4... Be7 {[%clk 0:02:46.5]} 5. Bd3 {[%clk 0:02:53]}
5... b6 {[%clk 0:02:33.4]} 6. f4 {[%clk 0:02:52.5]} 6... Bb7 {[%clk 0:02:32.6]}
7. Ngf3 {[%clk 0:02:52.3]} 7... Ne4 {[%clk 0:02:30.8]} 8. Bxe7 {[%clk
0:02:50.8]} 8... Qxe7 {[%clk 0:02:29.4]} 9. Bxe4 {[%clk 0:02:50.7]} 9... dxe4
{[%clk 0:02:30.3]} 10. Ne5 {[%clk 0:02:50.5]} 10... O-O {[%clk 0:02:28.2]} 11.
O-O {[%clk 0:02:50]} 11... Nd7 {[%clk 0:02:24.1]} 12. c3 {[%clk 0:02:49.7]}
12... c5 {[%clk 0:02:15.2]} 13. Qg4 {[%clk 0:02:37.5]} 13... Rad8 {[%clk
0:02:02.1]} 14. a4 {[%clk 0:02:34.8]} 14... f5 {[%clk 0:01:55.1]} 15. Qh3 {[%clk
0:02:27.4]} 15... Nxe5 {[%clk 0:01:53.7]} 16. fxe5 {[%clk 0:02:26.6]} 16... cxd4
{[%clk 0:01:54.2]} 17. exd4 {[%clk 0:02:20.1]} 17... Qg5 {[%clk 0:01:47.3]} 18.
Rad1 {[%clk 0:02:02.3]} 18... Qg6 {[%clk 0:01:37.5]} 19. Qe3 {[%clk 0:01:52.9]}
19... Qh5 {[%clk 0:01:33.5]} 20. Rde1 {[%clk 0:01:50.2]} 20... g5 {[%clk
0:01:30]} 21. Rf2 {[%clk 0:01:47.5]} 21... f4 {[%clk 0:01:26.2]} 22. Qe2 {[%clk
0:01:45.3]} 22... Qxe2 {[%clk 0:01:21.9]} 23. Rfxe2 {[%clk 0:01:44.4]} 23... e3
{[%clk 0:01:22.4]} 24. Nc4 {[%clk 0:01:37.6]} 24... Ba6 {[%clk 0:01:17.2]} 25.
b3 {[%clk 0:01:37.3]} 25... Rc8 {[%clk 0:01:10.6]} 26. g3 {[%clk 0:01:23.6]}
26... f3 {[%clk 0:01:06.4]} 27. Rxe3 {[%clk 0:01:17.5]} 27... f2+ {[%clk
0:01:05.9]} 28. Kf1 {[%clk 0:01:17.3]} 28... fxe1=Q+ {[%clk 0:01:06.6]} 29. Kxe1
{[%clk 0:01:17.2]} 29... Bxc4 {[%clk 0:01:07.3]} 30. bxc4 {[%clk 0:01:17]} 30...
Rxc4 {[%clk 0:01:08.1]} 31. Ke2 {[%clk 0:01:10.5]} 31... Rxa4 {[%clk 0:01:06.9]}
32. Kd3 {[%clk 0:01:09.5]} 32... Rc8 {[%clk 0:01:04.4]} 33. Re4 {[%clk
0:01:05.3]} 33... Ra3 {[%clk 0:01:02]} 34. Rg4 {[%clk 0:01:04.2]} 34... Rcxc3+
{[%clk 0:01:01.6]} 35. Ke4 {[%clk 0:01:03.7]} 35... Re3# {[%clk 0:01:01.2]} 0-1

[Event "Late-Titled-Tuesday-Blitz-March-12-2024"]
[Site "Chess.com"]
[Date "2024.03.12"]
[Round "4"]
[White "ncofre98"]
[Black "Ready4abattle"]
[Result "1-0"]
[WhiteElo "2605"]
[BlackElo "2412"]
[TimeControl "180+1"]
[EndTime "14:35:47 PDT"]
[Termination "ncofre98 won by resignation"]

1. e4 {[%clk 0:03:00.9]} 1... c5 {[%clk 0:03:00.2]} 2. Nf3 {[%clk 0:03:00.6]}
2... Nc6 {[%clk 0:03:00.4]} 3. Bb5 {[%clk 0:02:59.7]} 3... e6 {[%clk 0:03:00.3]}
4. O-O {[%clk 0:03:00.1]} 4... Nge7 {[%clk 0:03:00.6]} 5. Re1 {[%clk 0:03:00.6]}
5... a6 {[%clk 0:03:00.8]} 6. Bf1 {[%clk 0:03:01]} 6... d5 {[%clk 0:03:01.1]} 7.
exd5 {[%clk 0:03:01.9]} 7... Nxd5 {[%clk 0:03:01.5]} 8. d4 {[%clk 0:03:02.1]}
8... Nf6 {[%clk 0:03:02]} 9. Be3 {[%clk 0:03:01.3]} 9... cxd4 {[%clk 0:02:59.9]}
10. Nxd4 {[%clk 0:03:02.2]} 10... Nxd4 {[%clk 0:02:57.8]} 11. Qxd4 {[%clk
0:03:03.1]} 11... Qxd4 {[%clk 0:02:55.7]} 12. Bxd4 {[%clk 0:03:04]} 12... Bd7
{[%clk 0:02:51.9]} 13. a4 {[%clk 0:02:58.7]} 13... Bc6 {[%clk 0:02:50.1]} 14. a5
{[%clk 0:02:57.8]} 14... Bb4 {[%clk 0:02:43.7]} 15. c3 {[%clk 0:02:55.9]} 15...
Be7 {[%clk 0:02:44]} 16. Nd2 {[%clk 0:02:56.1]} 16... O-O {[%clk 0:02:41.9]} 17.
Nc4 {[%clk 0:02:56.7]} 17... Nd5 {[%clk 0:02:34.9]} 18. Nb6 {[%clk 0:02:39.5]}
18... Nxb6 {[%clk 0:02:30.8]} 19. Bxb6 {[%clk 0:02:40.4]} 19... Bd8 {[%clk
0:02:20.3]} 20. Bxd8 {[%clk 0:02:28.5]} 20... Rfxd8 {[%clk 0:02:19.8]} 21. Red1
{[%clk 0:02:29.1]} 21... Kf8 {[%clk 0:02:18.7]} 22. f3 {[%clk 0:02:26.9]} 22...
Ke7 {[%clk 0:02:18.8]} 23. Kf2 {[%clk 0:02:26.7]} 23... Rxd1 {[%clk 0:02:13.6]}
24. Rxd1 {[%clk 0:02:27.6]} 24... Rd8 {[%clk 0:02:13.9]} 25. Rxd8 {[%clk
0:02:27.1]} 25... Kxd8 {[%clk 0:02:14.8]} 26. Ke3 {[%clk 0:02:27.1]} 26... Kc7
{[%clk 0:02:13]} 27. Kd4 {[%clk 0:02:27]} 27... b6 {[%clk 0:01:16.6]} 28. Bxa6
{[%clk 0:02:19.6]} 28... bxa5 {[%clk 0:01:15.6]} 29. Kc5 {[%clk 0:02:19.6]}
29... e5 {[%clk 0:01:06.8]} 30. Bb5 {[%clk 0:02:12.1]} 30... Bb7 {[%clk
0:01:06.9]} 31. Bd3 {[%clk 0:02:00.1]} 31... g6 {[%clk 0:01:03.5]} 32. Bc4
{[%clk 0:01:55]} 32... f5 {[%clk 0:00:54.2]} 33. Bg8 {[%clk 0:01:51.7]} 33... h6
{[%clk 0:00:31.7]} 34. Bh7 {[%clk 0:01:50.1]} 34... e4 {[%clk 0:00:31]} 35. fxe4
{[%clk 0:01:48.4]} 35... Bxe4 {[%clk 0:00:26.7]} 36. g3 {[%clk 0:01:47.1]} 36...
g5 {[%clk 0:00:24.8]} 37. g4 {[%clk 0:01:47]} 1-0

[Event "Late-Titled-Tuesday-Blitz-March-12-2024"]
[Site "Chess.com"]
[Date "2024.03.12"]
[Round "4"]
[White "bazar-wokzal"]
[Black "Levanzovsky"]
[Result "1-0"]
[WhiteElo "2560"]
[BlackElo "2382"]
[TimeControl "180+1"]
[EndTime "14:35:49 PDT"]
[Termination "bazar-wokzal won by resignation"]

1. e4 {[%clk 0:03:00.9]} 1... e5 {[%clk 0:02:59.7]} 2. Bc4 {[%clk 0:02:59.5]}
2... Nf6 {[%clk 0:02:53.7]} 3. d3 {[%clk 0:02:59.4]} 3... d5 {[%clk 0:02:46.7]}
4. exd5 {[%clk 0:02:59]} 4... Nxd5 {[%clk 0:02:47.6]} 5. Nf3 {[%clk 0:02:58.8]}
5... Nc6 {[%clk 0:02:47.2]} 6. O-O {[%clk 0:02:58.4]} 6... Bg4 {[%clk
0:02:44.5]} 7. h3 {[%clk 0:02:58.4]} 7... Bh5 {[%clk 0:02:43.8]} 8. Re1 {[%clk
0:02:57.1]} 8... f6 {[%clk 0:02:42.6]} 9. g4 {[%clk 0:02:37.1]} 9... Bf7 {[%clk
0:02:39.9]} 10. d4 {[%clk 0:02:36.3]} 10... Bd6 {[%clk 0:02:12.2]} 11. dxe5
{[%clk 0:02:26.5]} 11... Bxe5 {[%clk 0:02:11.7]} 12. Nxe5 {[%clk 0:02:21.7]}
12... fxe5 {[%clk 0:02:12.2]} 13. Nc3 {[%clk 0:02:15.7]} 13... Nxc3 {[%clk
0:02:09.1]} 14. Bxf7+ {[%clk 0:02:14.3]} 14... Kxf7 {[%clk 0:02:07.6]} 15. Qf3+
{[%clk 0:02:13.8]} 15... Qf6 {[%clk 0:02:07.9]} 16. Qxc3 {[%clk 0:02:12.2]}
16... Rhf8 {[%clk 0:02:02]} 17. Qb3+ {[%clk 0:02:07.7]} 17... Ke7 {[%clk
0:01:45.8]} 18. Be3 {[%clk 0:01:57.3]} 18... b6 {[%clk 0:01:42.1]} 19. Rad1
{[%clk 0:01:51.8]} 19... Rad8 {[%clk 0:01:36.3]} 20. Qc4 {[%clk 0:01:39.1]}
20... Qf3 {[%clk 0:01:28.9]} 21. Bg5+ {[%clk 0:01:28.3]} 21... Rf6 {[%clk
0:01:16.4]} 22. Rxd8 {[%clk 0:01:26.1]} 22... Kxd8 {[%clk 0:01:13.6]} 23. Bxf6+
{[%clk 0:01:23.8]} 23... gxf6 {[%clk 0:01:13.5]} 24. Qg8+ {[%clk 0:01:15]} 24...
Kd7 {[%clk 0:01:09.4]} 25. Qxh7+ {[%clk 0:01:15.3]} 25... Kd6 {[%clk 0:01:07.7]}
26. Qd3+ {[%clk 0:01:13.7]} 26... Nd4 {[%clk 0:01:07.3]} 27. Qxf3 {[%clk
0:01:09]} 27... Nxf3+ {[%clk 0:01:07.2]} 28. Kf1 {[%clk 0:01:09.7]} 28... Kd5
{[%clk 0:00:58.7]} 29. Re3 {[%clk 0:01:05]} 29... Nd2+ {[%clk 0:00:58.6]} 30.
Kg2 {[%clk 0:01:04.5]} 30... Nc4 {[%clk 0:00:59.5]} 31. h4 {[%clk 0:01:03.1]}
1-0

[Event "Late-Titled-Tuesday-Blitz-March-12-2024"]
[Site "Chess.com"]
[Date "2024.03.12"]
[Round "4"]
[White "Rud_2008"]
[Black "ChristopherYoo"]
[Result "0-1"]
[WhiteElo "2777"]
[BlackElo "2996"]
[TimeControl "180+1"]
[EndTime "14:35:55 PDT"]
[Termination "ChristopherYoo won by resignation"]

1. e4 {[%clk 0:03:00.9]} 1... Nc6 {[%clk 0:02:52.4]} 2. Nf3 {[%clk 0:03:00]}
2... d6 {[%clk 0:02:51.6]} 3. d4 {[%clk 0:02:59.8]} 3... Nf6 {[%clk 0:02:44.2]}
4. Nc3 {[%clk 0:02:58.7]} 4... Bg4 {[%clk 0:02:42.9]} 5. Be2 {[%clk 0:02:53.2]}
5... e5 {[%clk 0:02:33.1]} 6. d5 {[%clk 0:02:32.8]} 6... Bxf3 {[%clk 0:02:26.9]}
7. Bxf3 {[%clk 0:02:32.6]} 7... Nd4 {[%clk 0:02:27.1]} 8. Be3 {[%clk 0:02:33]}
8... c5 {[%clk 0:02:20.5]} 9. dxc6 {[%clk 0:02:32.2]} 9... Nxf3+ {[%clk
0:02:20]} 10. Qxf3 {[%clk 0:02:33.1]} 10... bxc6 {[%clk 0:02:20.4]} 11. O-O
{[%clk 0:02:30.5]} 11... Be7 {[%clk 0:02:20.5]} 12. Rfd1 {[%clk 0:02:28.3]}
12... O-O {[%clk 0:02:19.1]} 13. b3 {[%clk 0:02:07.9]} 13... h6 {[%clk
0:02:09.2]} 14. Na4 {[%clk 0:02:04.4]} 14... Qc8 {[%clk 0:02:09]} 15. h3 {[%clk
0:01:58]} 15... d5 {[%clk 0:02:07.5]} 16. exd5 {[%clk 0:01:56.2]} 16... cxd5
{[%clk 0:02:07]} 17. Qg3 {[%clk 0:01:51.3]} 17... Qe6 {[%clk 0:01:47.4]} 18. Re1
{[%clk 0:01:11.4]} 18... Ne4 {[%clk 0:01:44.3]} 19. Qf3 {[%clk 0:01:11.5]} 19...
f5 {[%clk 0:01:44.3]} 20. Rad1 {[%clk 0:01:09.5]} 20... d4 {[%clk 0:01:37.6]}
21. Bc1 {[%clk 0:01:06.3]} 21... Rac8 {[%clk 0:01:37.3]} 22. Re2 {[%clk
0:00:58.1]} 22... Rc6 {[%clk 0:01:29.4]} 23. Nb2 {[%clk 0:00:48.7]} 23... Nc3
{[%clk 0:01:26.2]} 24. Qd3 {[%clk 0:00:34.2]} 24... e4 {[%clk 0:01:21.9]} 25.
Qd2 {[%clk 0:00:31.5]} 25... Bg5 {[%clk 0:01:19.1]} 26. Qe1 {[%clk 0:00:31.3]}
26... Nxe2+ {[%clk 0:01:17]} 27. Qxe2 {[%clk 0:00:31.5]} 27... d3 {[%clk
0:01:17.3]} 0-1

[Event "Late-Titled-Tuesday-Blitz-March-12-2024"]
[Site "Chess.com"]
[Date "2024.03.12"]
[Round "4"]
[White "RichardShtivelband"]
[Black "tarno17"]
[Result "1-0"]
[WhiteElo "2493"]
[BlackElo "2216"]
[TimeControl "180+1"]
[EndTime "14:35:57 PDT"]
[Termination "RichardShtivelband won by resignation"]

1. d4 {[%clk 0:03:00.9]} 1... d5 {[%clk 0:02:59.5]} 2. c4 {[%clk 0:03:00.5]}
2... e6 {[%clk 0:02:59.6]} 3. Nc3 {[%clk 0:02:59.5]} 3... Nf6 {[%clk 0:03:00.2]}
4. Nf3 {[%clk 0:02:59.4]} 4... Be7 {[%clk 0:02:59.7]} 5. Bf4 {[%clk 0:02:59.3]}
5... O-O {[%clk 0:02:57.1]} 6. e3 {[%clk 0:02:59.1]} 6... c6 {[%clk 0:02:51.9]}
7. Qc2 {[%clk 0:02:58.3]} 7... b6 {[%clk 0:02:50.4]} 8. O-O-O {[%clk 0:02:57.7]}
8... Ba6 {[%clk 0:02:40.8]} 9. Ne5 {[%clk 0:02:54]} 9... c5 {[%clk 0:01:56.2]}
10. dxc5 {[%clk 0:02:52.5]} 10... Bxc5 {[%clk 0:01:46.4]} 11. cxd5 {[%clk
0:02:51.8]} 11... exd5 {[%clk 0:01:26.2]} 12. g4 {[%clk 0:02:36.6]} 12... Bxf1
{[%clk 0:01:14.4]} 13. Rhxf1 {[%clk 0:02:36.1]} 13... Na6 {[%clk 0:01:15.2]} 14.
g5 {[%clk 0:02:32.5]} 14... Nh5 {[%clk 0:01:08.5]} 15. Nxd5 {[%clk 0:02:21]}
15... Qc8 {[%clk 0:00:43.8]} 16. a3 {[%clk 0:02:07.9]} 16... Nxf4 {[%clk
0:00:42.7]} 17. exf4 {[%clk 0:02:06.8]} 17... Qh3 {[%clk 0:00:34.9]} 18. Kb1
{[%clk 0:01:39.6]} 18... Rac8 {[%clk 0:00:28.6]} 19. Qd3 {[%clk 0:01:35.4]}
19... Qe6 {[%clk 0:00:12]} 20. Qxa6 {[%clk 0:01:33.7]} 20... Rfd8 {[%clk
0:00:03.8]} 21. Qd3 {[%clk 0:01:22.1]} 21... h6 {[%clk 0:00:02.6]} 22. h4 {[%clk
0:01:21.2]} 1-0

[Event "Late-Titled-Tuesday-Blitz-March-12-2024"]
[Site "Chess.com"]
[Date "2024.03.12"]
[Round "4"]
[White "Alphafischer2019"]
[Black "crazyluzhinTh3"]
[Result "1-0"]
[WhiteElo "2743"]
[BlackElo "2567"]
[TimeControl "180+1"]
[EndTime "14:36:09 PDT"]
[Termination "Alphafischer2019 won by resignation"]

1. e4 {[%clk 0:03:00.9]} 1... d6 {[%clk 0:03:00]} 2. d4 {[%clk 0:03:00.4]} 2...
Nf6 {[%clk 0:03:00.9]} 3. Nc3 {[%clk 0:03:00]} 3... g6 {[%clk 0:03:01.5]} 4. Be3
{[%clk 0:02:59.5]} 4... c6 {[%clk 0:03:01.4]} 5. Qd2 {[%clk 0:02:53.5]} 5...
Nbd7 {[%clk 0:03:01.1]} 6. O-O-O {[%clk 0:02:51.4]} 6... Qa5 {[%clk 0:03:01.2]}
7. Kb1 {[%clk 0:02:50.7]} 7... b5 {[%clk 0:03:01.3]} 8. f3 {[%clk 0:02:37.4]}
8... Rb8 {[%clk 0:03:00.8]} 9. Nd5 {[%clk 0:02:30]} 9... Qxd2 {[%clk 0:03:00.1]}
10. Nxf6+ {[%clk 0:02:30.1]} 10... Nxf6 {[%clk 0:02:53.7]} 11. Rxd2 {[%clk
0:02:31]} 11... a6 {[%clk 0:02:52.5]} 12. Ne2 {[%clk 0:02:30.2]} 12... Bg7
{[%clk 0:02:52.7]} 13. Nc1 {[%clk 0:02:29.5]} 13... O-O {[%clk 0:02:53.1]} 14.
Nb3 {[%clk 0:02:29.4]} 14... Bd7 {[%clk 0:02:50.4]} 15. Be2 {[%clk 0:02:29.1]}
15... Rfc8 {[%clk 0:02:50.7]} 16. Rhd1 {[%clk 0:02:27.4]} 16... Be8 {[%clk
0:02:49]} 17. h4 {[%clk 0:02:24.7]} 17... Nd7 {[%clk 0:02:46.6]} 18. h5 {[%clk
0:02:22.3]} 18... Nb6 {[%clk 0:02:46.6]} 19. h6 {[%clk 0:02:19.7]} 19... Bh8
{[%clk 0:02:45.8]} 20. Na5 {[%clk 0:02:19.2]} 20... Bd7 {[%clk 0:02:38.9]} 21.
g4 {[%clk 0:02:13.5]} 21... Kf8 {[%clk 0:02:35.9]} 22. Bg5 {[%clk 0:01:58.3]}
22... Be6 {[%clk 0:02:17.4]} 23. Be3 {[%clk 0:01:55.1]} 23... Nc4 {[%clk
0:02:15.7]} 24. Nxc4 {[%clk 0:01:48.9]} 24... Bxc4 {[%clk 0:02:13.6]} 25. f4
{[%clk 0:01:37.6]} 25... Bxe2 {[%clk 0:02:03]} 26. Rxe2 {[%clk 0:01:38.5]} 26...
e6 {[%clk 0:02:03.5]} 27. e5 {[%clk 0:01:35.5]} 27... Ke7 {[%clk 0:02:01.5]} 28.
g5 {[%clk 0:01:34.6]} 28... d5 {[%clk 0:01:55]} 29. Bd2 {[%clk 0:01:33.7]} 29...
Kd7 {[%clk 0:01:54.4]} 30. Bb4 {[%clk 0:01:31.8]} 30... Ra8 {[%clk 0:01:54.6]}
31. Bc5 {[%clk 0:01:27.4]} 31... a5 {[%clk 0:01:54.7]} 32. b3 {[%clk 0:01:26.8]}
32... Kc7 {[%clk 0:01:54.3]} 33. c3 {[%clk 0:01:26.8]} 33... Kb7 {[%clk
0:01:54.4]} 34. Rb2 {[%clk 0:01:25.8]} 34... Ra6 {[%clk 0:01:54.4]} 35. c4
{[%clk 0:01:25.7]} 35... Kc7 {[%clk 0:01:49.2]} 36. Rc1 {[%clk 0:01:25.5]} 36...
Kd7 {[%clk 0:01:49.4]} 37. a3 {[%clk 0:01:24.1]} 37... Raa8 {[%clk 0:01:48.9]}
38. cxb5 {[%clk 0:01:20.5]} 38... cxb5 {[%clk 0:01:48.8]} 39. Rbc2 {[%clk
0:01:21.1]} 39... Rc6 {[%clk 0:01:47.2]} 40. Bd6 {[%clk 0:01:19.1]} 40... Rac8
{[%clk 0:01:46.2]} 41. Bc5 {[%clk 0:01:14.7]} 41... R8c7 {[%clk 0:01:44]} 42.
Kb2 {[%clk 0:01:15.3]} 42... Rc8 {[%clk 0:01:44.1]} 43. Rc3 {[%clk 0:00:50.8]}
43... Ke8 {[%clk 0:01:43.7]} 44. Bb6 {[%clk 0:00:50.4]} 44... Rxc3 {[%clk
0:01:43.2]} 45. Rxc3 {[%clk 0:00:50.1]} 45... Rxc3 {[%clk 0:01:34.2]} 46. Kxc3
{[%clk 0:00:51]} 46... Kd7 {[%clk 0:01:31.4]} 47. Bxa5 {[%clk 0:00:50.8]} 47...
Kc6 {[%clk 0:01:32]} 48. Kb4 {[%clk 0:00:51.5]} 48... Bxe5 {[%clk 0:01:31.3]}
49. fxe5 {[%clk 0:00:51.1]} 1-0

[Event "Late-Titled-Tuesday-Blitz-March-12-2024"]
[Site "Chess.com"]
[Date "2024.03.12"]
[Round "4"]
[White "Jagerrmeisterr"]
[Black "PelinGorki"]
[Result "1-0"]
[WhiteElo "2722"]
[BlackElo "2546"]
[TimeControl "180+1"]
[EndTime "14:36:11 PDT"]
[Termination "Jagerrmeisterr won by resignation"]

1. e4 {[%clk 0:03:00.9]} 1... d6 {[%clk 0:03:00.1]} 2. Nc3 {[%clk 0:03:00.8]}
2... Nf6 {[%clk 0:03:00.2]} 3. f4 {[%clk 0:03:01.1]} 3... d5 {[%clk 0:02:59.6]}
4. e5 {[%clk 0:02:58.5]} 4... d4 {[%clk 0:03:00.1]} 5. Nce2 {[%clk 0:02:52.9]}
5... Nd5 {[%clk 0:03:00.3]} 6. Nxd4 {[%clk 0:02:46]} 6... Nxf4 {[%clk
0:02:59.9]} 7. Ndf3 {[%clk 0:02:46.1]} 7... c5 {[%clk 0:02:40.5]} 8. d4 {[%clk
0:02:44.7]} 8... Ng6 {[%clk 0:02:35.3]} 9. d5 {[%clk 0:02:36.3]} 9... Bg4 {[%clk
0:02:32]} 10. h3 {[%clk 0:02:33]} 10... Bxf3 {[%clk 0:02:24.2]} 11. Nxf3 {[%clk
0:02:33.1]} 11... e6 {[%clk 0:02:24.9]} 12. Bb5+ {[%clk 0:02:28.8]} 12... Nd7
{[%clk 0:02:20.9]} 13. O-O {[%clk 0:02:20.2]} 13... a6 {[%clk 0:02:18.6]} 14.
dxe6 {[%clk 0:02:18.2]} 14... fxe6 {[%clk 0:02:12.7]} 15. Bc4 {[%clk 0:01:39.9]}
15... Qb6 {[%clk 0:01:58.8]} 16. Ng5 {[%clk 0:01:34.4]} 16... Ndxe5 {[%clk
0:01:58]} 17. Bxe6 {[%clk 0:01:29.3]} 17... Be7 {[%clk 0:01:51.2]} 18. Qd5
{[%clk 0:00:56.6]} 18... Bf6 {[%clk 0:00:51.6]} 19. Be3 {[%clk 0:00:30]} 19...
Rd8 {[%clk 0:00:51]} 20. Bf7+ {[%clk 0:00:30.3]} 20... Kf8 {[%clk 0:00:44]} 21.
Bxc5+ {[%clk 0:00:30.6]} 1-0

[Event "Late-Titled-Tuesday-Blitz-March-12-2024"]
[Site "Chess.com"]
[Date "2024.03.12"]
[Round "4"]
[White "CaspiIsrael"]
[Black "GilbertoHernandezAmura"]
[Result "1-0"]
[WhiteElo "2691"]
[BlackElo "2458"]
[TimeControl "180+1"]
[EndTime "14:36:17 PDT"]
[Termination "CaspiIsrael won by resignation"]

1. e4 {[%clk 0:02:59.1]} 1... g6 {[%clk 0:02:54.7]} 2. d4 {[%clk 0:02:58.2]}
2... Bg7 {[%clk 0:02:55.1]} 3. c4 {[%clk 0:02:58.9]} 3... d6 {[%clk 0:02:51.2]}
4. Nc3 {[%clk 0:02:58.8]} 4... Nf6 {[%clk 0:02:48]} 5. Be2 {[%clk 0:02:57.1]}
5... e5 {[%clk 0:02:33.7]} 6. Nf3 {[%clk 0:02:56.3]} 6... exd4 {[%clk
0:02:32.6]} 7. Nxd4 {[%clk 0:02:56.4]} 7... O-O {[%clk 0:02:13.6]} 8. O-O {[%clk
0:02:56.1]} 8... Re8 {[%clk 0:02:13.6]} 9. f3 {[%clk 0:02:54.8]} 9... a5 {[%clk
0:02:13]} 10. Kh1 {[%clk 0:02:53.5]} 10... Na6 {[%clk 0:02:09.9]} 11. Be3 {[%clk
0:02:53]} 11... Nc5 {[%clk 0:02:09.7]} 12. Qd2 {[%clk 0:02:53.1]} 12... Bd7
{[%clk 0:02:05.8]} 13. Rad1 {[%clk 0:02:53.3]} 13... a4 {[%clk 0:02:04.8]} 14.
Ndb5 {[%clk 0:02:50.6]} 14... Bxb5 {[%clk 0:02:01.9]} 15. Nxb5 {[%clk
0:02:50.3]} 15... Nfd7 {[%clk 0:01:55.3]} 16. Nc3 {[%clk 0:02:46.5]} 16... Ne5
{[%clk 0:01:25.6]} 17. Nd5 {[%clk 0:02:43.3]} 17... Qd7 {[%clk 0:01:13.1]} 18.
Bg5 {[%clk 0:02:38.8]} 18... Re6 {[%clk 0:00:42.2]} 19. Qc2 {[%clk 0:02:35.5]}
19... Nc6 {[%clk 0:00:39.2]} 20. Be3 {[%clk 0:02:29.8]} 20... Qc8 {[%clk
0:00:33.5]} 21. Rfe1 {[%clk 0:02:23.9]} 21... h6 {[%clk 0:00:30.2]} 22. b4
{[%clk 0:02:18.1]} 22... Nd7 {[%clk 0:00:29.1]} 23. a3 {[%clk 0:02:17.8]} 23...
Re8 {[%clk 0:00:25.2]} 24. Qd2 {[%clk 0:02:15.8]} 24... Kh7 {[%clk 0:00:23.7]}
25. Rc1 {[%clk 0:02:15.9]} 25... b6 {[%clk 0:00:21.4]} 26. Red1 {[%clk
0:02:15.9]} 26... Nce5 {[%clk 0:00:21.4]} 27. Bf1 {[%clk 0:02:15.6]} 27... Nf6
{[%clk 0:00:20.6]} 28. Nxf6+ {[%clk 0:02:12.9]} 28... Bxf6 {[%clk 0:00:21.1]}
29. Bxh6 {[%clk 0:02:13.4]} 29... Rh8 {[%clk 0:00:21.7]} 30. Bg5 {[%clk
0:02:11.2]} 30... Bxg5 {[%clk 0:00:20.8]} 31. Qxg5 {[%clk 0:02:12.1]} 31... Kg7
{[%clk 0:00:21.4]} 32. Kg1 {[%clk 0:02:10.6]} 32... Qe6 {[%clk 0:00:20.9]} 33.
Qe3 {[%clk 0:02:03.1]} 33... Rh5 {[%clk 0:00:20]} 34. h3 {[%clk 0:02:02.8]}
34... Rah8 {[%clk 0:00:16.2]} 35. Rc2 {[%clk 0:02:01.6]} 35... Re8 {[%clk
0:00:14.9]} 36. c5 {[%clk 0:02:00.5]} 36... bxc5 {[%clk 0:00:14.9]} 37. bxc5
{[%clk 0:02:01.4]} 37... dxc5 {[%clk 0:00:14.9]} 38. Rxc5 {[%clk 0:02:01.3]}
38... Qe7 {[%clk 0:00:15.3]} 39. Rdc1 {[%clk 0:02:00.9]} 39... c6 {[%clk
0:00:15.1]} 40. Qc3 {[%clk 0:01:59.9]} 40... Kg8 {[%clk 0:00:14.4]} 41. Be2
{[%clk 0:01:59.3]} 41... Rg5 {[%clk 0:00:14.7]} 42. f4 {[%clk 0:01:58.9]} 42...
Nd7 {[%clk 0:00:07.9]} 43. Rxg5 {[%clk 0:01:58.2]} 1-0